[Event "Krakow Championship-C 2022"]
[Site "Krakow"]
[Date "2022.06.27"]
[Round "4.1"]
[White "Andriienko, Artom"]
[Black "Diachek, Andriy"]
[Result "1/2-1/2"]
[ECO "E15"]
[WhiteElo "1588"]
[BlackElo "1451"]
[Annotator "NA RC"]
[PlyCount "145"]
[EventDate "2022.06.25"]
[EventType "swiss"]
[EventCountry "POL"]
[SourceTitle "playchess.com"]
[Source "ChessBase"]
[SourceQuality "1"]
[TimeControl "5400+30"]

1. d4 {[%emt 0:00:05]} Nf6 {[%emt 0:00:07]} 2. c4 {[%emt 0:00:06]} e6 {[%emt 0:00:08]} 3. Nf3 {[%emt 0:00:05]} b6 {[%emt 0:00:10]} 4. g3 {[%emt 0:00:06]} Bb4+ {[%emt 0:01:01]} 5. Nbd2 {[%emt 0:00:50]} Bb7 {[%emt 0:00:26]} 6. Bg2 {[%emt 0:00:08]} O-O 7. O-O d5 {[%emt 0:02:33]} 8. Qc2 {[%emt 0:06:34]} Nbd7 {[%emt 0:01:48]} 9. cxd5 {[%emt 0:08:13]} exd5 {[%emt 0:00:17]} 10. a3 {[%emt 0:02:01]} Bd6 {[%emt 0:00:54]} 11. b4 {[%emt 0:09:57]} Re8 {[%emt 0:01:30]} 12. e3 {[%emt 0:06:07]} Ne4 {[%emt 0:03:30]} 13. Nxe4 {[%emt 0:04:21]} dxe4 {[%emt 0:01:31]} 14. Nd2 {[%emt 0:00:07]} Nf6 {[%emt 0:00:21]} 15. Nc4 {[%emt 0:01:10]} Qd7 {[%emt 0:03:05]} 16. Ne5 {[%emt 0:05:53]} Qf5 {[%emt 0:07:21]} 17. Bb2 {[%emt 0:01:46]} Ng4 {[%emt 0:05:52]} 18. Nc4 {[%emt 0:16:15]} Ba6 {[%emt 0:13:55]} 19. Rac1 {[%emt 0:09:15]} Rad8 {[%emt 0:06:51]} 20. f3 {[%emt 0:09:28]} Nxh2 {[%emt 0:04:33]} 21. fxe4 {[%emt 0:00:08]} Qh5 {[%emt 0:03:35]} 22. Rf5 {[%emt 0:05:29]} Qh6 {[%emt 0:03:54]} 23. b5 {[%emt 0:02:05]} Bc8 {[%emt 0:02:10]} 24. e5 {[%emt 0:03:59]} Ng4 {[%emt 0:05:39]} 25. Rf3 {[%emt 0:00:33]} Bb7 {[%emt 0:03:19]} 26. Qf5 {[%emt 0:02:25]} Bxf3 {[%emt 0:02:24]} 27. Qxf3 {[%emt 0:00:03]} Qh2+ {[%emt 0:01:06]} 28. Kf1 {[%emt 0:00:04]} Qh5 {[%emt 0:00:24]} 29. Ke2 {[%emt 0:00:55]} Be7 {[%emt 0:00:27]} 30. Rh1 {[%emt 0:00:13]} Qg6 {[%emt 0:00:24]} 31. Qe4 {[%emt 0:00:14]} Nh6 {[%emt 0:00:55]} 32. Qxg6 {[%emt 0:00:04]} hxg6 {[%emt 0:00:11]} 33. Bc6 {[%emt 0:00:06]} Rf8 {[%emt 0:01:28]} 34. e4 {[%emt 0:00:09]} Kh7 {[%emt 0:01:06]} 35. g4 {[%emt 0:01:03]} Rh8 {[%emt 0:00:36]} 36. Bd5 {[%emt 0:00:20]} Kg8 {[%emt 0:00:56]} 37. Rf1 {[%emt 0:00:28]} Rf8 {[%emt 0:00:28]} 38. Rg1 {[%emt 0:00:27]} g5 {[%emt 0:00:18]} 39. Ne3 {[%emt 0:00:12]} g6 {[%emt 0:00:48]} 40. Rc1 {[%emt 0:00:05]} Bd8 {[%emt 0:00:34]} 41. Bb3 {[%emt 0:00:13]} Nf5 {[%emt 0:02:58]} 42. gxf5 {[%emt 0:01:52]} Rh2+ {[%emt 0:00:07]} 43. Kf3 {[%emt 0:00:05]} Rxb2 {[%emt 0:00:15]} 44. Bd5 {[%emt 0:00:10]} Kg7 {[%emt 0:02:15]} 45. f6+ {[%emt 0:00:09]} Bxf6 {[%emt 0:00:08]} 46. exf6+ {[%emt 0:00:05]} Kxf6 {[%emt 0:00:05]} 47. Ng4+ {[%emt 0:00:17]} Kg7 {[%emt 0:00:17]} 48. Rxc7 {[%emt 0:00:06]} Rxb5 {[%emt 0:01:52]} 49. Ne5 {[%emt 0:00:06]} Rb1 {[%emt 0:00:09]} 50. Rxa7 {[%emt 0:00:31]} Kh6 {[%emt 0:00:32]} 51. Nxf7+ {[%emt 0:00:52]} Kh5 {[%emt 0:00:21]} 52. Kg2 {[%emt 0:00:16]} Kh4 {[%emt 0:00:26]} 53. Kf2 {[%emt 0:00:37]} g4 {[%emt 0:00:29]} 54. Ke3 {[%emt 0:00:13]} g3 {[%emt 0:02:34]} 55. e5 {[%emt 0:00:10]} Rb5 {[%emt 0:06:45]} 56. Be4 {[%emt 0:00:11]} Rb3+ {[%emt 0:00:31]} 57. Kd2 {[%emt 0:00:17]} Kg4 {[%emt 0:02:01]} 58. e6 {[%emt 0:00:52]} Rb2+ {[%emt 0:02:16]} 59. Kc3 {[%emt 0:00:13]} Re2 {[%emt 0:00:47]} 60. Ne5+ {[%emt 0:00:04]} Kg5 {[%emt 0:00:30]} 61. Bd5 {[%emt 0:00:29]} g2 {[%emt 0:01:49]} 62. Bxg2 {[%emt 0:00:06]} Rxg2 {[%emt 0:00:39]} 63. e7 {[%emt 0:00:54]} Re8 {[%emt 0:00:09]} 64. d5 {[%emt 0:00:35]} Re2 {[%emt 0:01:20]} 65. Nc6 {[%emt 0:00:05]} Kg4 {[%emt 0:03:41]} 66. Kd3 {[%emt 0:01:20]} Re1 {[%emt 0:00:44]} 67. Kd2 {[%emt 0:00:08]} Rf1 {[%emt 0:01:01]} 68. d6 {[%emt 0:00:10]} Rf6 {[%emt 0:00:30]} 69. d7 {[%emt 0:00:21]} Rd6+ {[%emt 0:00:05]} 70. Ke3 {[%emt 0:00:08]} Rxe7+ {[%emt 0:00:52]} 71. Nxe7 {[%emt 0:00:04]} Re6+ {[%emt 0:00:02]} 72. Kf2 {[%emt 0:00:11]} Rxe7 {[%emt 0:00:07]} 73. Ra4+ {[%emt 0:00:11]} 1/2-1/2

[Event "Krakow Championship-C 2022"]
[Site "Krakow"]
[Date "2022.06.27"]
[Round "4.2"]
[White "Kuznik, Kamil"]
[Black "Chmielewski, Miroslaw"]
[Result "1/2-1/2"]
[ECO "B28"]
[WhiteElo "1456"]
[BlackElo "1571"]
[Annotator "NA RC"]
[PlyCount "34"]
[EventDate "2022.06.25"]
[EventType "swiss"]
[EventCountry "POL"]
[SourceTitle "playchess.com"]
[Source "ChessBase"]
[SourceQuality "1"]
[TimeControl "5400+30"]

1. e4 {[%emt 0:00:02]} c5 {[%emt 0:05:41]} 2. Nf3 {[%emt 0:00:03]} a6 {[%emt 0:01:17]} 3. c3 {[%emt 0:01:44]} d5 {[%emt 0:02:10]} 4. exd5 {[%emt 0:00:44]} Qxd5 {[%emt 0:00:26]} 5. d4 {[%emt 0:00:30]} Bf5 {[%emt 0:01:09]} 6. Be2 {[%emt 0:01:40]} Nc6 {[%emt 0:00:35]} 7. O-O {[%emt 0:01:39]} cxd4 {[%emt 0:06:21]} 8. Nxd4 {[%emt 0:00:58]} Nxd4 {[%emt 0:01:00]} 9. cxd4 {[%emt 0:00:33]} Bxb1 {[%emt 0:01:35]} 10. Rxb1 {[%emt 0:01:30]} e6 {[%emt 0:02:34]} 11. Bf3 {[%emt 0:04:53]} Qb5 {[%emt 0:10:03]} 12. Qc2 {[%emt 0:07:47]} Bd6 {[%emt 0:01:03]} 13. Qe4 {[%emt 0:04:49]} Rb8 {[%emt 0:05:16]} 14. Bf4 {[%emt 0:01:39]} Nf6 {[%emt 0:00:32]} 15. Qe3 {[%emt 0:00:59]} Nd5 {[%emt 0:05:14]} 16. Bxd5 {[%emt 0:00:21]} Qxd5 {[%emt 0:00:06]} 17. Bxd6 {[%emt 0:00:26]} Qxd6 {[%emt 0:00:25]} 1/2-1/2

[Event "Krakow Championship-C 2022"]
[Site "Krakow"]
[Date "2022.06.27"]
[Round "4.3"]
[White "Cwiek, Stefan"]
[Black "Jaromin, Maciej"]
[Result "1-0"]
[ECO "B22"]
[WhiteElo "1280"]
[BlackElo "1479"]
[Annotator "NA RC"]
[PlyCount "40"]
[EventDate "2022.06.25"]
[EventType "swiss"]
[EventCountry "POL"]
[SourceTitle "playchess.com"]
[Source "ChessBase"]
[SourceQuality "1"]
[TimeControl "5400+30"]

1. e4 {[%emt 0:00:02]} c5 {[%emt 0:00:04]} 2. c3 {[%emt 0:00:07]} d5 {[%emt 0:00:13]} 3. exd5 {[%emt 0:00:05]} Qxd5 {[%emt 0:00:49]} 4. d4 {[%emt 0:00:11]} Nf6 {[%emt 0:00:10]} 5. Nf3 {[%emt 0:00:37]} Bg4 {[%emt 0:00:11]} 6. Be2 {[%emt 0:00:00]} Nc6 {[%emt 0:01:20]} 7. c4 {[%emt 0:02:03]} Qd7 {[%emt 0:01:17]} 8. d5 {[%emt 0:01:13]} Bxf3 {[%emt 0:00:15]} 9. Bxf3 {[%emt 0:00:41]} Nd4 {[%emt 0:00:07]} 10. Be3 {[%emt 0:00:44]} Nxf3+ {[%emt 0:00:18]} 11. Qxf3 {[%emt 0:00:09]} Rc8 {[%emt 0:03:06]} 12. Nc3 {[%emt 0:00:21]} Qg4 {[%emt 0:03:22]} 13. Qxg4 {[%emt 0:08:04]} Nxg4 {[%emt 0:00:06]} 14. Bf4 {[%emt 0:00:27]} g6 {[%emt 0:00:37]} 15. h3 {[%emt 0:07:59]} Bh6 {[%emt 0:02:36]} 16. Bxh6 {[%emt 0:01:33]} Nxh6 {[%emt 0:00:07]} 17. g4 {[%emt 0:00:29]} f5 {[%emt 0:00:14]} 18. f3 {[%emt 0:06:12]} O-O {[%emt 0:00:29]} 19. O-O-O {[%emt 0:03:08]} Rf6 {[%emt 0:02:03]} 20. g5 {[%emt 0:00:19]} Ra8 1-0

[Event "Krakow Championship-C 2022"]
[Site "Krakow"]
[Date "2022.06.27"]
[Round "4.4"]
[White "Olszewski, Antoni"]
[Black "Lesniak, Wojciech"]
[Result "1/2-1/2"]
[ECO "B36"]
[WhiteElo "1532"]
[BlackElo "1368"]
[Annotator "NA RC"]
[PlyCount "58"]
[EventDate "2022.06.25"]
[EventType "swiss"]
[EventCountry "POL"]
[SourceTitle "playchess.com"]
[Source "ChessBase"]
[SourceQuality "1"]
[TimeControl "5400+30"]

1. e4 {[%emt 0:00:00]} c5 {[%emt 0:00:16]} 2. Nf3 {[%emt 0:00:41]} g6 {[%emt 0:00:08]} 3. d4 {[%emt 0:01:16]} cxd4 {[%emt 0:00:44]} 4. Nxd4 {[%emt 0:01:02]} Nc6 {[%emt 0:00:44]} 5. c4 {[%emt 0:00:31]} Nf6 {[%emt 0:00:23]} 6. Nc3 {[%emt 0:00:19]} d6 {[%emt 0:00:54]} 7. Be2 {[%emt 0:00:26]} Nxd4 {[%emt 0:00:15]} 8. Qxd4 {[%emt 0:00:56]} Bg7 {[%emt 0:00:40]} 9. Be3 {[%emt 0:00:51]} O-O {[%emt 0:02:12]} 10. Qd2 {[%emt 0:01:09]} Be6 {[%emt 0:04:18]} 11. O-O {[%emt 0:03:09]} Qa5 {[%emt 0:03:31]} 12. Bd4 {[%emt 0:19:01]} Nxe4 {[%emt 0:00:15]} 13. Nxe4 {[%emt 0:01:30]} Qxd2 {[%emt 0:00:12]} 14. Nxd2 {[%emt 0:06:25]} Bxd4 {[%emt 0:02:02]} 15. Nf3 {[%emt 0:03:55]} Bg7 {[%emt 0:03:41]} 16. Rad1 {[%emt 0:03:38]} Rfc8 {[%emt 0:01:05]} 17. b3 {[%emt 0:03:14]} a6 {[%emt 0:04:29]} 18. Nd4 {[%emt 0:05:43]} Bd7 {[%emt 0:03:57]} 19. Nc2 {[%emt 0:04:36]} b5 {[%emt 0:11:29]} 20. Ne3 {[%emt 0:05:22]} Be6 {[%emt 0:07:28]} 21. Nd5 {[%emt 0:01:12]} Bxd5 {[%emt 0:03:22]} 22. Rxd5 {[%emt 0:04:31]} b4 {[%emt 0:05:43]} 23. Bf3 {[%emt 0:04:16]} Ra7 {[%emt 0:12:25]} 24. Rfd1 {[%emt 0:12:17]} Bf8 {[%emt 0:02:47]} 25. h3 {[%emt 0:01:10]} e6 {[%emt 0:02:50]} 26. R5d3 {[%emt 0:05:20]} Rc5 {[%emt 0:05:36]} 27. Kf1 {[%emt 0:04:42]} a5 {[%emt 0:08:39]} 28. Rb1 {[%emt 0:00:25]} Rd7 {[%emt 0:06:15]} 29. Rbd1 Be7 1/2-1/2

[Event "Krakow Championship-C 2022"]
[Site "Krakow"]
[Date "2022.06.27"]
[Round "4.6"]
[White "Bajer, Jakub"]
[Black "Wegrzyn, Bartosz"]
[Result "1-0"]
[ECO "D00"]
[WhiteElo "1358"]
[BlackElo "1286"]
[Annotator "NA RC"]
[PlyCount "59"]
[EventDate "2022.06.25"]
[EventType "swiss"]
[EventCountry "POL"]
[SourceTitle "playchess.com"]
[Source "ChessBase"]
[SourceQuality "1"]
[TimeControl "5400+30"]

1. d4 {[%emt 0:00:05]} d5 {[%emt 0:00:06]} 2. Nc3 {[%emt 0:00:08]} Nf6 {[%emt 0:00:58]} 3. Bf4 {[%emt 0:00:07]} c5 {[%emt 0:00:39]} 4. e4 {[%emt 0:00:05]} dxe4 {[%emt 0:04:44]} 5. dxc5 {[%emt 0:00:17]} Qxd1+ {[%emt 0:01:16]} 6. Rxd1 {[%emt 0:00:09]} a6 {[%emt 0:02:10]} 7. b4 {[%emt 0:05:15]} e6 {[%emt 0:06:23]} 8. g4 {[%emt 0:00:51]} Nc6 {[%emt 0:05:26]} 9. g5 {[%emt 0:03:05]} Nd5 {[%emt 0:00:46]} 10. Rxd5 {[%emt 0:00:19]} exd5 {[%emt 0:00:09]} 11. Nxd5 {[%emt 0:00:07]} Ra7 {[%emt 0:09:58]} 12. Nc7+ {[%emt 0:04:27]} Kd8 {[%emt 0:03:56]} 13. c3 {[%emt 0:01:58]} Be6 {[%emt 0:01:37]} 14. Bg2 {[%emt 0:04:04]} Bxa2 {[%emt 0:04:10]} 15. Bxe4 {[%emt 0:00:48]} Be7 {[%emt 0:02:21]} 16. Nf3 {[%emt 0:00:37]} g6 {[%emt 0:09:49]} 17. O-O {[%emt 0:00:37]} Kc8 {[%emt 0:05:02]} 18. Ra1 {[%emt 0:06:46]} Bc4 {[%emt 0:05:30]} 19. Nd2 {[%emt 0:03:43]} Be6 {[%emt 0:01:39]} 20. Nxe6 {[%emt 0:02:53]} fxe6 {[%emt 0:00:09]} 21. Nc4 {[%emt 0:00:05]} Kd8 {[%emt 0:07:14]} 22. Rd1+ {[%emt 0:03:30]} Ke8 {[%emt 0:00:12]} 23. Nb6 {[%emt 0:00:35]} Kf7 {[%emt 0:02:30]} 24. Rd7 {[%emt 0:01:41]} Nb8 {[%emt 0:09:06]} 25. Rc7 {[%emt 0:01:51]} a5 {[%emt 0:04:12]} 26. b5 {[%emt 0:00:35]} a4 {[%emt 0:01:33]} 27. Bd6 {[%emt 0:00:21]} Re8 {[%emt 0:01:11]} 28. Bxe7 {[%emt 0:01:02]} Rxe7 {[%emt 0:00:08]} 29. Rxe7+ {[%emt 0:00:05]} Kxe7 {[%emt 0:00:08]} 30. Nc8+ {[%emt 0:00:05]} 1-0

[Event "Krakow Championship-C 2022"]
[Site "Krakow"]
[Date "2022.06.27"]
[Round "4.7"]
[White "Fus, Krzysztof"]
[Black "Grzelak, Piotr"]
[Result "0-1"]
[ECO "A40"]
[WhiteElo "1333"]
[BlackElo "1684"]
[Annotator "NA RC"]
[PlyCount "140"]
[EventDate "2022.06.25"]
[EventType "swiss"]
[EventCountry "POL"]
[SourceTitle "playchess.com"]
[Source "ChessBase"]
[SourceQuality "1"]
[TimeControl "5400+30"]

1. d4 {[%emt 0:00:03]} e6 {[%emt 0:02:20]} 2. Bf4 {[%emt 0:00:29]} d5 {[%emt 0:00:14]} 3. e3 {[%emt 0:00:29]} Nf6 {[%emt 0:00:42]} 4. a3 {[%emt 0:00:19]} Bd6 {[%emt 0:00:27]} 5. Bxd6 {[%emt 0:00:12]} cxd6 {[%emt 0:01:07]} 6. c4 {[%emt 0:01:19]} dxc4 {[%emt 0:03:51]} 7. Bxc4 {[%emt 0:03:59]} O-O {[%emt 0:02:00]} 8. Nf3 {[%emt 0:00:58]} b6 {[%emt 0:03:42]} 9. O-O {[%emt 0:03:26]} Bb7 {[%emt 0:02:58]} 10. Qe2 {[%emt 0:08:46]} Nbd7 {[%emt 0:01:22]} 11. Ba6 {[%emt 0:03:22]} Bxa6 {[%emt 0:04:37]} 12. Qxa6 {[%emt 0:00:09]} Ne4 {[%emt 0:02:40]} 13. Rc1 {[%emt 0:16:23]} Ndf6 {[%emt 0:04:06]} 14. Nbd2 {[%emt 0:03:41]} Nxd2 {[%emt 0:06:40]} 15. Nxd2 {[%emt 0:00:19]} Qd7 {[%emt 0:00:23]} 16. Rc2 {[%emt 0:06:04]} Rfc8 {[%emt 0:07:37]} 17. Rac1 {[%emt 0:00:26]} Rxc2 {[%emt 0:00:27]} 18. Rxc2 {[%emt 0:00:03]} h5 {[%emt 0:02:30]} 19. Kf1 {[%emt 0:10:52]} e5 {[%emt 0:02:54]} 20. Qd3 {[%emt 0:08:50]} Rc8 {[%emt 0:03:25]} 21. dxe5 {[%emt 0:02:02]} Rxc2 {[%emt 0:00:41]} 22. Qxc2 {[%emt 0:00:31]} dxe5 {[%emt 0:01:08]} 23. f3 {[%emt 0:02:13]} g5 {[%emt 0:12:36]} 24. g3 {[%emt 0:06:39]} g4 {[%emt 0:07:34]} 25. f4 {[%emt 0:03:25]} exf4 {[%emt 0:00:15]} 26. exf4 {[%emt 0:00:02]} Qd5 {[%emt 0:01:50]} 27. Ke1 {[%emt 0:02:10]} Kg7 {[%emt 0:07:09]} 28. Qc4 {[%emt 0:02:06]} Qh1+ {[%emt 0:01:17]} 29. Nf1 {[%emt 0:00:07]} Qf3 {[%emt 0:01:16]} 30. Qe2 {[%emt 0:00:48]} Qd5 {[%emt 0:03:14]} 31. Ne3 {[%emt 0:02:56]} Qe4 {[%emt 0:00:41]} 32. Kd2 {[%emt 0:02:13]} Qb1 {[%emt 0:02:36]} 33. Kc3 {[%emt 0:01:28]} Ne4+ {[%emt 0:00:55]} 34. Kb4 {[%emt 0:01:17]} a5+ {[%emt 0:01:00]} 35. Kc4 {[%emt 0:01:08]} Qa2+ {[%emt 0:03:39]} 36. Kd4 {[%emt 0:02:49]} Nd6 {[%emt 0:01:35]} 37. Nd5 {[%emt 0:01:40]} Nf5+ {[%emt 0:02:45]} 38. Ke5 {[%emt 0:00:38]} Ne7 {[%emt 0:02:12]} 39. Nc3 {[%emt 0:00:50]} Qe6+ {[%emt 0:00:41]} 40. Kd4 {[%emt 0:00:02]} Nf5+ {[%emt 0:01:14]} 41. Kd3 {[%emt 0:00:02]} Qd6+ {[%emt 0:00:09]} 42. Kc4 {[%emt 0:00:47]} Qc5+ {[%emt 0:00:28]} 43. Kd3 {[%emt 0:00:42]} Qd4+ {[%emt 0:01:06]} 44. Kc2 {[%emt 0:00:03]} Ne3+ {[%emt 0:00:34]} 45. Kb1 {[%emt 0:01:21]} Nc4 {[%emt 0:00:25]} 46. Qd1 {[%emt 0:02:40]} Nxa3+ {[%emt 0:00:18]} 47. Ka2 {[%emt 0:01:07]} Qxd1 {[%emt 0:00:34]} 48. Nxd1 {[%emt 0:00:01]} Nc2 {[%emt 0:00:46]} 49. Kb3 {[%emt 0:00:49]} Ne1 {[%emt 0:00:28]} 50. Ka4 {[%emt 0:00:34]} Nf3 {[%emt 0:01:41]} 51. Ne3 {[%emt 0:00:02]} Nxh2 {[%emt 0:00:31]} 52. Kb5 {[%emt 0:00:04]} Nf3 {[%emt 0:00:00]} 53. Kxb6 {[%emt 0:00:00]} Nd4 {[%emt 0:00:00]} 54. Kxa5 {[%emt 0:00:00]} Ne2 {[%emt 0:00:00]} 55. Nf1 {[%emt 0:00:00]} h4 {[%emt 0:00:10]} 56. gxh4 {[%emt 0:00:00]} g3 {[%emt 0:00:18]} 57. Nxg3 Nxg3 {[%emt 0:00:01]} 58. b4 {[%emt 0:00:59]} Ne4 {[%emt 0:00:29]} 59. Kb5 {[%emt 0:01:29]} Kh6 {[%emt 0:00:25]} 60. Kc6 {[%emt 0:00:38]} Nc3 {[%emt 0:00:37]} 61. Kd6 {[%emt 0:00:51]} Kh5 {[%emt 0:00:54]} 62. f5 {[%emt 0:00:48]} Kxh4 {[%emt 0:01:27]} 63. f6 {[%emt 0:00:57]} Kg5 {[%emt 0:00:18]} 64. Ke7 {[%emt 0:00:26]} Kg6 {[%emt 0:00:14]} 65. Kd6 {[%emt 0:01:05]} Kxf6 {[%emt 0:00:06]} 66. Kc5 {[%emt 0:00:08]} Ke5 {[%emt 0:00:07]} 67. Kc4 {[%emt 0:00:11]} Nd5 {[%emt 0:00:09]} 68. b5 {[%emt 0:00:18]} Ke4 {[%emt 0:00:10]} 69. Kb3 {[%emt 0:00:25]} f5 {[%emt 0:00:08]} 70. Kc2 {[%emt 0:00:07]} Ke5 0-1

[Event "Krakow Championship-C 2022"]
[Site "Krakow"]
[Date "2022.06.27"]
[Round "4.8"]
[White "Rabenda, Piotr"]
[Black "Krasuski, Pawel"]
[Result "0-1"]
[ECO "D37"]
[WhiteElo "1237"]
[BlackElo "1682"]
[Annotator "NA RC"]
[PlyCount "80"]
[EventDate "2022.06.25"]
[EventType "swiss"]
[EventCountry "POL"]
[SourceTitle "playchess.com"]
[Source "ChessBase"]
[SourceQuality "1"]
[TimeControl "5400+30"]

1. d4 d5 {[%emt 0:14:12]} 2. c4 {[%emt 0:00:10]} e6 {[%emt 0:00:06]} 3. Nf3 {[%emt 0:00:11]} Nf6 {[%emt 0:00:09]} 4. Nc3 {[%emt 0:00:18]} a6 {[%emt 0:00:39]} 5. Bg5 {[%emt 0:00:42]} dxc4 {[%emt 0:01:17]} 6. e4 {[%emt 0:00:25]} b5 {[%emt 0:00:32]} 7. a4 {[%emt 0:00:38]} c6 {[%emt 0:00:41]} 8. e5 {[%emt 0:02:13]} h6 {[%emt 0:00:03]} 9. Bxf6 {[%emt 0:00:29]} gxf6 10. exf6 {[%emt 0:00:22]} Bb7 {[%emt 0:00:46]} 11. Ne5 {[%emt 0:06:57]} Qxf6 {[%emt 0:01:08]} 12. Be2 {[%emt 0:07:51]} Nd7 {[%emt 0:01:46]} 13. Ne4 {[%emt 0:04:03]} Bb4+ {[%emt 0:00:09]} 14. Kf1 {[%emt 0:00:49]} Qe7 {[%emt 0:01:06]} 15. Bh5 {[%emt 0:00:46]} Rf8 {[%emt 0:05:34]} 16. h4 {[%emt 0:07:30]} O-O-O {[%emt 0:00:35]} 17. Qc2 {[%emt 0:05:07]} Nb6 {[%emt 0:04:49]} 18. b3 {[%emt 0:04:47]} cxb3 {[%emt 0:02:42]} 19. Qxb3 {[%emt 0:00:56]} Rxd4 {[%emt 0:00:38]} 20. f3 {[%emt 0:00:46]} Qc7 {[%emt 0:01:43]} 21. Nd3 {[%emt 0:02:26]} c5 {[%emt 0:02:49]} 22. axb5 {[%emt 0:03:22]} Bd5 {[%emt 0:00:23]} 23. Qc2 {[%emt 0:01:29]} Bc4 {[%emt 0:00:10]} 24. Nef2 {[%emt 0:01:00]} Rfd8 {[%emt 0:00:12]} 25. Rd1 {[%emt 0:02:26]} Qd7 {[%emt 0:01:28]} 26. Ke2 {[%emt 0:02:15]} Nd5 {[%emt 0:01:32]} 27. g3 {[%emt 0:00:57]} Nc3+ {[%emt 0:01:06]} 28. Ke3 {[%emt 0:00:55]} Nd5+ {[%emt 0:07:49]} 29. Ke2 {[%emt 0:00:34]} Qc7 {[%emt 0:01:11]} 30. f4 Nc3+ {[%emt 0:05:50]} 31. Ke3 {[%emt 0:02:46]} Nxd1+ {[%emt 0:04:43]} 32. Rxd1 {[%emt 0:00:12]} Bxb5 {[%emt 0:03:31]} 33. Bf3 {[%emt 0:13:26]} a5 {[%emt 0:02:01]} 34. Be4 {[%emt 0:01:11]} f5 {[%emt 0:00:31]} 35. Bf3 {[%emt 0:00:48]} c4 {[%emt 0:02:06]} 36. Nxb4 {[%emt 0:00:32]} Rxd1 {[%emt 0:00:15]} 37. Nxd1 {[%emt 0:00:46]} Qc5+ {[%emt 0:00:34]} 38. Ke2 {[%emt 0:00:25]} c3+ {[%emt 0:00:24]} 39. Nd3 {[%emt 0:00:58]} Bxd3+ {[%emt 0:00:14]} 40. Ke1 {[%emt 0:00:33]} Qg1# {[%emt 0:00:21]} 0-1

[Event "Krakow Championship-C 2022"]
[Site "Krakow"]
[Date "2022.06.28"]
[Round "5.1"]
[White "Cwiek, Stefan"]
[Black "Andriienko, Artom"]
[Result "0-1"]
[ECO "B22"]
[WhiteElo "1280"]
[BlackElo "1588"]
[Annotator "NA RC"]
[PlyCount "72"]
[EventDate "2022.06.25"]
[EventType "swiss"]
[EventCountry "POL"]
[SourceTitle "playchess.com"]
[Source "ChessBase"]
[SourceQuality "1"]
[TimeControl "5400+30"]

1. e4 {[%emt 0:00:03]} c5 {[%emt 0:00:09]} 2. c3 {[%emt 0:00:08]} Nf6 {[%emt 0:00:06]} 3. e5 {[%emt 0:00:05]} Nd5 {[%emt 0:00:04]} 4. d4 {[%emt 0:00:08]} cxd4 {[%emt 0:00:06]} 5. cxd4 {[%emt 0:00:05]} Nc6 {[%emt 0:00:12]} 6. Nf3 {[%emt 0:00:08]} g6 {[%emt 0:00:08]} 7. Nc3 {[%emt 0:00:10]} Nxc3 {[%emt 0:01:33]} 8. bxc3 {[%emt 0:00:07]} Bg7 {[%emt 0:00:03]} 9. Bf4 {[%emt 0:00:22]} d6 {[%emt 0:00:48]} 10. exd6 {[%emt 0:00:30]} O-O {[%emt 0:09:09]} 11. dxe7 {[%emt 0:03:35]} Qxe7+ {[%emt 0:00:17]} 12. Be2 {[%emt 0:00:12]} Re8 {[%emt 0:00:20]} 13. Be3 {[%emt 0:00:28]} Bf5 {[%emt 0:04:51]} 14. O-O {[%emt 0:00:43]} Rac8 {[%emt 0:02:00]} 15. Rc1 {[%emt 0:03:02]} Bh6 {[%emt 0:16:50]} 16. Bxh6 {[%emt 0:03:38]} Qxe2 {[%emt 0:00:05]} 17. Qa4 {[%emt 0:10:41]} b5 {[%emt 0:04:21]} 18. Qa6 {[%emt 0:00:48]} Qc4 {[%emt 0:12:20]} 19. Rfe1 {[%emt 0:19:49]} Be6 {[%emt 0:10:00]} 20. Rb1 {[%emt 0:05:26]} b4 {[%emt 0:04:53]} 21. Qxc4 {[%emt 0:02:34]} Bxc4 {[%emt 0:00:05]} 22. Rxe8+ {[%emt 0:03:08]} Rxe8 {[%emt 0:00:02]} 23. cxb4 {[%emt 0:01:17]} Bxa2 {[%emt 0:00:04]} 24. Rb2 {[%emt 0:02:11]} Bd5 {[%emt 0:00:11]} 25. Be3 {[%emt 0:00:44]} Rb8 {[%emt 0:04:04]} 26. b5 {[%emt 0:10:38]} f6 {[%emt 0:01:37]} 27. Nd2 {[%emt 0:07:49]} a5 {[%emt 0:08:54]} 28. Nb1 {[%emt 0:00:53]} Nb4 {[%emt 0:01:30]} 29. Nc3 {[%emt 0:02:33]} Bc4 {[%emt 0:01:15]} 30. Bf4 {[%emt 0:03:59]} Re8 {[%emt 0:01:59]} 31. g3 {[%emt 0:02:01]} g5 {[%emt 0:03:21]} 32. Bc7 {[%emt 0:02:10]} Re1+ {[%emt 0:00:15]} 33. Kg2 {[%emt 0:00:15]} g4 {[%emt 0:00:04]} 34. f4 {[%emt 0:03:12]} Bf1+ {[%emt 0:00:22]} 35. Kf2 {[%emt 0:01:48]} Nd3+ {[%emt 0:00:04]} 36. Kg1 {[%emt 0:00:05]} Bh3# {[%emt 0:00:05]} 0-1

[Event "Krakow Championship-C 2022"]
[Site "Krakow"]
[Date "2022.06.28"]
[Round "5.2"]
[White "Chmielewski, Miroslaw"]
[Black "Bajer, Jakub"]
[Result "1-0"]
[ECO "B31"]
[WhiteElo "1571"]
[BlackElo "1358"]
[Annotator "NA RC"]
[PlyCount "71"]
[EventDate "2022.06.25"]
[EventType "swiss"]
[EventCountry "POL"]
[SourceTitle "playchess.com"]
[Source "ChessBase"]
[SourceQuality "1"]
[TimeControl "5400+30"]

1. e4 {[%emt 0:00:05]} c5 {[%emt 0:00:53]} 2. Nf3 {[%emt 0:00:10]} Nc6 {[%emt 0:00:09]} 3. Bb5 {[%emt 0:00:34]} g6 {[%emt 0:00:06]} 4. O-O {[%emt 0:00:30]} Bg7 {[%emt 0:00:07]} 5. c3 {[%emt 0:00:19]} d6 {[%emt 0:00:46]} 6. d3 {[%emt 0:00:51]} Bd7 {[%emt 0:01:05]} 7. Ba4 {[%emt 0:03:08]} Nf6 {[%emt 0:02:14]} 8. Re1 {[%emt 0:00:14]} O-O {[%emt 0:01:05]} 9. Nbd2 {[%emt 0:00:28]} Rb8 {[%emt 0:02:36]} 10. Nf1 {[%emt 0:01:05]} b5 {[%emt 0:00:43]} 11. Bc2 {[%emt 0:00:09]} Ne8 {[%emt 0:04:36]} 12. h3 {[%emt 0:09:21]} b4 {[%emt 0:04:32]} 13. c4 {[%emt 0:00:30]} Nc7 {[%emt 0:02:08]} 14. Ne3 {[%emt 0:00:54]} Ne6 {[%emt 0:00:58]} 15. Nd5 {[%emt 0:09:09]} Ned4 {[%emt 0:02:20]} 16. Bb1 {[%emt 0:04:49]} Ne5 {[%emt 0:07:23]} 17. Nxd4 {[%emt 0:01:32]} cxd4 {[%emt 0:00:12]} 18. Bd2 {[%emt 0:13:25]} a5 {[%emt 0:01:54]} 19. Rf1 {[%emt 0:02:46]} e6 {[%emt 0:06:07]} 20. Nf4 {[%emt 0:00:10]} Bh6 {[%emt 0:00:22]} 21. Nxe6 {[%emt 0:02:01]} Bxe6 {[%emt 0:03:26]} 22. Bxh6 {[%emt 0:00:10]} Qh4 {[%emt 0:00:05]} 23. Bxf8 {[%emt 0:06:22]} Rxf8 {[%emt 0:00:39]} 24. f4 {[%emt 0:01:07]} Nc6 {[%emt 0:01:07]} 25. Bc2 {[%emt 0:07:42]} Bxh3 {[%emt 0:00:17]} 26. Qf3 {[%emt 0:02:19]} Bg4 {[%emt 0:00:51]} 27. Qf2 {[%emt 0:00:21]} Qh6 {[%emt 0:00:22]} 28. Bd1 {[%emt 0:02:40]} f5 {[%emt 0:00:07]} 29. Bxg4 {[%emt 0:02:24]} fxg4 {[%emt 0:00:08]} 30. Qg3 {[%emt 0:01:45]} Qh5 {[%emt 0:01:31]} 31. Qh2 {[%emt 0:00:24]} Qc5 {[%emt 0:00:33]} 32. Qh4 {[%emt 0:00:45]} Kg7 {[%emt 0:02:36]} 33. Qxg4 {[%emt 0:02:12]} Ne7 {[%emt 0:00:37]} 34. Qg5 {[%emt 0:03:08]} d5 {[%emt 0:00:05]} 35. cxd5 {[%emt 0:02:35]} h6 {[%emt 0:00:41]} 36. Qe5+ {[%emt 0:00:27]} 1-0